bitfinex/quotes_SOLUSD_20250317
["timestamp","ask_amount","ask_price","bid_price","bid_amount"]
[1742219237680,17.70205339,127.96,127.93,7.64]
[1742219237858,17.70205339,127.95,127.93,7.64]
[1742219238057,17.70205339,127.95,127.91,6.0483]
[1742219238371,17.70205339,127.95,127.89,20.19644886]
[1742219238372,17.70205339,127.92,127.88,7.8195]
[1742219238576,7.8168,127.93,127.84,156.148]
[1742219238577,17.70205339,127.9,127.84,156.148]
[1742219238767,17.70205339,127.88,127.85,15.4616]
[1742219239405,17.70205339,127.88,127.85,7.64]
[1742219239585,17.70205339,127.87,127.85,7.64]
[1742219239877,17.70205339,127.88,127.84,23.76]
[1742219240486,17.70205339,127.87,127.84,16.1]
[1742219240854,7.8181,127.91,127.84,16.1]
[1742219241074,17.70205339,127.88,127.84,16.1]
[1742219241254,28.40200468,127.88,127.84,16.1]
[1742219241455,28.40200468,127.87,127.84,16.1]
[1742219241870,28.40200468,127.88,127.84,16.1]
[1742219242274,28.40200468,127.87,127.84,14.436]
[1742219242478,28.40200468,127.88,127.84,14.436]
[1742219245385,28.40200468,127.85,127.81,17.0421]
[1742219245553,28.40200468,127.86,127.83,0.03]
[1742219245759,20.0,127.87,127.83,28.43200468]
[1742219245991,20.0,127.87,127.84,7.8222]
[1742219246484,20.0,127.88,127.84,36.22420468]
[1742219246671,48.40200468,127.88,127.84,7.8222]
[1742219246874,20.0,127.88,127.84,7.8222]
[1742219247072,48.40200468,127.88,127.84,7.8222]
[1742219247388,20.0,127.88,127.84,7.8222]
[1742219247593,20.0,127.88,127.85,7.66]
[1742219247967,28.40200468,127.89,127.86,7.821]
[1742219248175,28.40200468,127.89,127.85,7.66]
[1742219248176,28.40200468,127.88,127.85,7.66]
[1742219248565,28.40200468,127.87,127.85,7.66]
[1742219249065,28.40200468,127.86,127.82,15.4835]
[1742219249280,28.40200468,127.87,127.82,15.4835]
[1742219249589,20.0,127.88,127.83,47.05165354]
[1742219249975,0.28432314,127.9,127.84,36.22420468]
[1742219250271,28.40200468,127.89,127.84,36.22420468]
[1742219251276,206.92216157,127.91,127.85,28.40200468]
[1742219251489,235.32416625,127.91,127.86,7.66]
[1742219251786,48.40200468,127.9,127.86,7.66]
[1742219252188,48.40200468,127.9,127.87,7.8204]
[1742219252364,28.40200468,127.91,127.87,7.8204]
[1742219253072,28.40200468,127.9,127.86,15.4809]
[1742219253671,28.40200468,127.89,127.86,7.66]
[1742219253871,28.40200468,127.89,127.82,15.4835]
[1742219253872,28.68632782,127.87,127.82,15.4835]
[1742219254168,28.40200468,127.85,127.82,7.66]
[1742219254579,28.40200468,127.85,127.83,0.63063216]
[1742219254999,28.68632782,127.86,127.83,0.63063216]
[1742219255386,28.40200468,127.84,127.83,0.63063216]
[1742219255775,28.40200468,127.85,127.83,0.63063216]
[1742219255976,0.28432314,127.86,127.83,0.63063216]
[1742219256195,28.40200468,127.85,127.83,0.63063216]
[1742219256500,28.40200468,127.84,127.83,0.63063216]
[1742219257204,28.68632782,127.84,127.83,0.63063216]
[1742219257773,28.40200468,127.85,127.83,0.63063216]
[1742219258281,36.50852782,127.84,127.83,0.63063216]
[1742219259604,55.44249982,127.84,127.83,0.63063216]
[1742219259812,77.37265564,127.82,127.81,0.03]
[1742219260103,96.0223045,127.82,127.81,0.03]
[1742219260414,0.28432314,127.8,127.79,2.7362613]
[1742219260583,28.97065096,127.8,127.79,2.7362613]
[1742219261681,47.62029982,127.8,127.79,2.7362613]
[1742219261895,55.28029982,127.8,127.79,2.7362613]
[1742219262101,55.28029982,127.8,127.7,348.23270468]
[1742219262102,28.40200468,127.75,127.71,7.66]
[1742219262307,28.40200468,127.74,127.7,15.4907]
[1742219262494,7.8278,127.75,127.7,36.23270468]
[1742219262495,28.40200468,127.75,127.7,36.23270468]
[1742219262701,7.96946157,127.76,127.7,7.66]
[1742219262898,28.40200468,127.74,127.7,7.66]
[1742219263200,0.14216157,127.75,127.7,15.4906]
[1742219263201,28.54416625,127.75,127.7,15.4906]
[1742219263404,28.54416625,127.75,127.69,36.25560468]
[1742219263405,28.40200468,127.71,127.69,0.1]
[1742219263589,0.28432314,127.72,127.69,0.1]
[1742219263590,28.40200468,127.7,127.69,0.1]
[1742219264481,28.40200468,127.71,127.69,0.1]
[1742219264687,7.66,127.78,127.69,28.50200468]
[1742219264987,48.40200468,127.75,127.7,28.40200468]
[1742219265909,28.40200468,127.73,127.69,0.1]
[1742219266322,36.23160468,127.72,127.69,0.1]
[1742219266613,28.40200468,127.72,127.69,0.1]
[1742219266792,48.54416625,127.73,127.69,0.1]
[1742219267311,7.8279,127.75,127.7,28.40200468]
[1742219267312,28.40200468,127.75,127.7,28.40200468]
[1742219268018,28.40200468,127.75,127.69,28.50200468]
[1742219268209,28.40200468,127.75,127.7,7.8308]
[1742219268391,28.40200468,127.74,127.7,7.8308]
[1742219268591,7.8278,127.75,127.69,0.1]
[1742219268592,28.40200468,127.72,127.69,0.1]
[1742219269009,28.40200468,127.7,127.69,0.1]
[1742219269186,28.68632782,127.7,127.69,0.1]
[1742219269705,0.42648471,127.73,127.69,0.1]
[1742219269706,48.40200468,127.71,127.69,0.1]
[1742219269904,28.40200468,127.7,127.69,0.1]
[1742219270415,28.54416625,127.72,127.69,0.1]
[1742219270712,28.54416625,127.73,127.69,0.1]
[1742219271415,20.28432314,127.74,127.69,28.50200468]
[1742219271709,28.40200468,127.73,127.7,7.66]
[1742219272506,28.40200468,127.71,127.69,0.1]
[1742219272703,28.40200468,127.7,127.69,0.13]
[1742219273101,28.68632782,127.7,127.69,0.13]
[1742219273809,28.68632782,127.7,127.69,0.1]
[1742219274398,36.51712782,127.7,127.69,0.1]
[1742219274706,28.68632782,127.7,127.69,0.1]
[1742219274906,0.28432314,127.7,127.69,0.1]
[1742219275102,7.66,127.73,127.69,0.1]
[1742219275291,20.28432314,127.71,127.69,0.1]
[1742219275808,0.28432314,127.71,127.69,0.1]
[1742219276013,48.54416625,127.71,127.69,0.1]
[1742219276397,28.40200468,127.71,127.69,0.1]
[1742219278010,28.68632782,127.7,127.69,0.1]
[1742219278691,36.51712782,127.7,127.69,0.1]
[1742219278891,36.80145096,127.7,127.69,0.1]
[1742219279099,36.51712782,127.7,127.69,0.1]
[1742219279715,28.68632782,127.7,127.69,0.1]
[1742219279894,36.51712782,127.7,127.69,0.1]
[1742219280210,36.80145096,127.7,127.69,0.1]
[1742219280794,36.51712782,127.7,127.69,0.1]
[1742219280995,36.80145096,127.7,127.69,0.1]
[1742219281198,83.8531045,127.7,127.69,0.1]
[1742219281413,0.28432314,127.66,127.62,8.1181]
[1742219281726,0.28432314,127.66,127.62,15.9537]
[1742219282105,28.40200468,127.67,127.62,44.35570468]
[1742219282298,28.40200468,127.66,127.62,15.9537]
[1742219282494,0.14216157,127.66,127.62,15.9537]
[1742219282795,28.54416625,127.66,127.62,15.9537]
[1742219283001,28.40200468,127.65,127.62,15.9537]
[1742219283201,28.40200468,127.65,127.62,1.6427]
[1742219283598,28.68632782,127.63,127.58,82.3554]
[1742219283816,28.40200468,127.62,127.59,7.66]
[1742219284003,28.40200468,127.61,127.58,1.5854]
[1742219284216,28.68632782,127.6,127.57,0.3]
[1742219285118,28.40200468,127.59,127.57,0.3]
[1742219285299,28.54416625,127.6,127.57,0.3]
[1742219285506,0.14216157,127.6,127.57,0.3]
[1742219285705,28.40200468,127.62,127.57,8.1387]
[1742219286021,20.0,127.62,127.57,0.3]
[1742219286213,28.40200468,127.61,127.57,0.3]
[1742219286813,28.40200468,127.62,127.57,8.1387]
[1742219287322,28.40200468,127.61,127.57,8.1387]
[1742219287521,28.40200468,127.61,127.57,0.3]
[1742219287701,28.40200468,127.59,127.57,0.3]
[1742219287903,28.40200468,127.58,127.55,7.8398]
[1742219288108,0.14216157,127.6,127.55,7.8398]
[1742219288309,28.40200468,127.59,127.55,7.8398]
[1742219288710,28.40200468,127.58,127.55,7.8398]
[1742219292029,28.40200468,127.59,127.54,50.29310468]
[1742219292331,28.40200468,127.59,127.54,69.89470468]
[1742219293333,17.82970678,127.61,127.55,12.82970678]
[1742219294025,17.82970678,127.62,127.56,17.82970678]
[1742219294211,17.82970678,127.61,127.56,17.82970678]
[1742219294406,17.82970678,127.61,127.56,312.0]
[1742219294623,17.82970678,127.59,127.54,59.32240678]
[1742219295109,28.53086847,127.59,127.54,70.02356847]
[1742219295531,28.53086847,127.57,127.54,21.8911]
[1742219295834,28.53086847,127.58,127.54,21.8911]
[1742219296939,28.53086847,127.59,127.54,21.8911]
[1742219297230,28.53086847,127.58,127.54,21.8911]
[1742219298532,28.53086847,127.58,127.54,21.9211]
[1742219298737,28.53086847,127.58,127.54,15.5305]
[1742219298944,28.53086847,127.56,127.54,0.03]
[1742219299316,28.53086847,127.57,127.54,0.03]
[1742219299534,7.8378,127.59,127.54,0.03]
[1742219299736,28.53086847,127.57,127.54,0.03]
[1742219300121,28.53086847,127.58,127.54,0.03]
[1742219300636,28.53086847,127.57,127.54,0.03]
[1742219301022,65.47038322,127.55,127.54,0.03]
[1742219301538,36.93951475,127.55,127.54,0.03]
[1742219301926,36.93951475,127.55,127.47,26.29712977]
[1742219302121,28.53086847,127.52,127.47,26.29712977]
[1742219302326,28.53086847,127.51,127.45,7.8459]
[1742219302542,28.53086847,127.49,127.44,116.96086847]
[1742219302736,28.53086847,127.5,127.45,28.53086847]
[1742219303129,28.53086847,127.5,127.44,392.77]
[1742219303130,0.28432314,127.49,127.41,108.7369]
[1742219303330,28.53086847,127.49,127.42,15.508]
[1742219303647,28.53086847,127.47,127.42,15.508]
[1742219303944,28.53086847,127.47,127.42,49.60312747]
[1742219304123,28.53086847,127.47,127.42,13.224259]
[1742219304318,28.53086847,127.47,127.42,41.75512747]
[1742219304522,28.53086847,127.49,127.42,13.224259]
[1742219304832,28.53086847,127.48,127.43,28.53086847]
[1742219305135,28.53086847,127.48,127.43,36.37786847]
[1742219305342,28.53086847,127.48,127.43,7.847]
[1742219305531,28.53086847,127.48,127.43,36.37786847]
[1742219305735,28.53086847,127.49,127.44,28.53086847]
[1742219306145,28.53086847,127.48,127.43,36.37786847]
[1742219306341,28.53086847,127.49,127.43,36.37786847]
[1742219306527,55.02141733,127.54,127.43,46.11524886]
[1742219306528,28.53086847,127.51,127.43,46.11524886]
[1742219306840,20.0,127.53,127.46,28.53086847]
[1742219307023,0.28432314,127.54,127.47,7.66]
[1742219307224,28.53086847,127.52,127.47,7.66]
[1742219307641,28.53086847,127.51,127.47,7.66]
[1742219307829,28.53086847,127.49,127.47,7.66]
[1742219308223,28.53086847,127.48,127.47,7.66]
[1742219308639,28.53086847,127.49,127.47,7.66]
[1742219308924,28.53086847,127.48,127.44,7.66]
[1742219309246,28.53086847,127.45,127.42,5.564259]
[1742219309537,20.14216157,127.48,127.42,13.224259]
[1742219309841,28.53086847,127.46,127.42,13.224259]
[1742219310046,28.53086847,127.46,127.42,21.072259]
[1742219310655,28.53086847,127.45,127.42,13.224259]
[1742219310819,28.53086847,127.44,127.42,5.564259]
[1742219311140,28.53086847,127.43,127.42,5.564259]
[1742219311528,28.53086847,127.44,127.42,5.564259]
[1742219311733,28.53086847,127.43,127.42,5.564259]
[1742219311941,28.53086847,127.44,127.42,13.412259]
[1742219312443,28.53086847,127.43,127.42,5.564259]
[1742219314246,29.09951475,127.43,127.42,5.564259]
[1742219314546,63.26466361,127.43,127.42,5.564259]
[1742219315041,63.26466361,127.43,127.35,36.38296847]
[1742219315042,0.28432314,127.42,127.35,36.38296847]
[1742219315245,28.53086847,127.4,127.35,36.38296847]
[1742219315435,28.53086847,127.41,127.36,28.53086847]
[1742219315648,0.28432314,127.42,127.37,28.53086847]
[1742219315821,28.53086847,127.43,127.38,36.19086847]
[1742219316031,28.67303004,127.43,127.38,36.19086847]
[1742219316425,28.67303004,127.44,127.39,28.53086847]
[1742219316630,28.67303004,127.44,127.39,36.38056847]
[1742219316939,28.53086847,127.42,127.38,7.66]
[1742219317931,28.53086847,127.42,127.38,15.5105]
[1742219318125,0.28432314,127.45,127.39,28.53086847]
[1742219318336,28.53086847,127.44,127.39,28.53086847]
[1742219318544,28.81519161,127.45,127.4,7.8492]
[1742219319037,28.53086847,127.46,127.4,36.38006847]
[1742219319235,28.53086847,127.46,127.41,28.53086847]
[1742219319438,28.53086847,127.46,127.4,36.38006847]
[1742219319947,28.53086847,127.45,127.4,7.8492]
[1742219320128,0.28432314,127.47,127.39,42.70966847]
[1742219320129,28.53086847,127.44,127.39,42.70966847]
[1742219320450,28.53086847,127.43,127.38,126.45486847]
[1742219320743,28.53086847,127.44,127.39,28.53086847]
[1742219321254,28.53086847,127.45,127.4,28.53086847]
[1742219321441,28.53086847,127.45,127.38,429.5503]
[1742219321442,28.67303004,127.46,127.41,28.53086847]
[1742219321641,0.28432314,127.46,127.41,28.53086847]
[1742219321847,28.81519161,127.46,127.42,7.66]
[1742219322041,28.53086847,127.46,127.42,7.66]
[1742219322634,28.53086847,127.45,127.42,7.66]
[1742219322958,28.53086847,127.45,127.41,7.8482]
[1742219322959,28.53086847,127.44,127.41,15.5082]
[1742219323345,28.53086847,127.45,127.41,15.5082]
[1742219323743,28.53086847,127.44,127.42,0.03]
[1742219323944,28.53086847,127.45,127.42,0.03]
[1742219324263,0.063,127.46,127.43,28.53086847]
[1742219324452,0.063,127.46,127.44,36.37766847]
[1742219324857,0.063,127.46,127.45,7.66]
[1742219325062,0.063,127.46,127.45,36.19086847]
[1742219325255,0.063,127.46,127.45,7.66]
[1742219325457,0.063,127.46,127.45,37.72686847]
[1742219326373,0.063,127.46,127.45,7.66]
[1742219326552,28.59386847,127.46,127.45,7.66]
[1742219326753,28.59386847,127.46,127.42,15.5078]
[1742219326970,28.53086847,127.45,127.42,15.5078]
[1742219327269,28.53086847,127.44,127.4,15.5091]
[1742219327460,28.53086847,127.44,127.4,7.66]
[1742219327648,28.59386847,127.46,127.41,28.53086847]
[1742219328158,28.53086847,127.45,127.4,15.5091]
[1742219328352,28.53086847,127.45,127.4,44.03996847]
[1742219328666,0.063,127.46,127.41,28.53086847]
[1742219328667,28.59386847,127.46,127.41,28.53086847]
[1742219328867,28.59386847,127.46,127.4,44.03996847]
[1742219329948,28.53086847,127.45,127.4,15.5091]
[1742219330153,28.53086847,127.45,127.4,44.03996847]
[1742219330351,28.59386847,127.46,127.42,7.848]
[1742219331649,0.063,127.46,127.42,36.37886847]
[1742219331857,28.81519161,127.45,127.4,36.19086847]
[1742219332051,28.53086847,127.45,127.4,15.509]
[1742219332246,28.53086847,127.45,127.4,44.03986847]
[1742219332459,28.53086847,127.44,127.4,15.509]
[1742219332663,28.53086847,127.45,127.4,15.509]
[1742219333067,28.53086847,127.43,127.39,80.77]
[1742219333364,28.53086847,127.44,127.39,88.6197]
[1742219333565,28.53086847,127.45,127.39,117.15056847]
[1742219334068,28.53086847,127.44,127.39,136.77526847]
[1742219334366,28.53086847,127.44,127.39,131.77526847]
[1742219334751,0.063,127.46,127.4,28.81519161]
[1742219334951,0.063,127.46,127.43,6.3712]
[1742219335153,17.93361221,127.46,127.43,7.66]
[1742219336061,0.063,127.46,127.43,7.66]
[1742219336870,0.063,127.46,127.44,7.8468]
[1742219337051,0.063,127.46,127.43,15.5074]
[1742219337246,17.93361221,127.46,127.43,7.66]
[1742219337453,17.87061221,127.45,127.42,7.8479]
[1742219337763,17.87061221,127.44,127.41,7.8486]
[1742219338160,17.87061221,127.43,127.39,14.2208]
[1742219338361,17.87061221,127.43,127.39,7.8496]
[1742219338559,17.87061221,127.42,127.39,7.8496]
[1742219338964,17.87061221,127.43,127.39,7.8496]
[1742219339774,17.87061221,127.42,127.39,7.8496]
[1742219340069,17.87061221,127.42,127.38,15.5103]
[1742219340256,17.87061221,127.42,127.38,7.8503]
[1742219340449,7.723,127.46,127.38,27.4766]
[1742219340450,0.063,127.46,127.38,27.4766]
[1742219340655,17.87061221,127.44,127.38,121.11721221]
[1742219340960,0.063,127.46,127.41,17.87061221]
[1742219341270,0.063,127.46,127.41,25.53061221]
[1742219341271,17.93361221,127.46,127.41,25.53061221]
[1742219341448,0.063,127.46,127.41,25.53061221]
[1742219341654,0.063,127.46,127.42,17.87061221]
[1742219341853,0.063,127.46,127.44,7.8468]
[1742219342060,0.063,127.46,127.43,7.8471]
[1742219342256,17.93361221,127.46,127.43,7.8471]
[1742219342460,0.063,127.46,127.43,7.8471]
[1742219343451,0.063,127.46,127.43,36.43053332]
[1742219343871,0.063,127.46,127.43,56.04913332]
[1742219344075,0.063,127.46,127.44,28.58343332]
[1742219344446,0.063,127.46,127.43,56.04913332]
[1742219345271,0.063,127.46,127.44,1.5617]
[1742219345477,0.063,127.46,127.44,30.14513332]
[1742219345660,0.063,127.46,127.45,7.66]
[1742219345984,0.0001,127.46,127.45,44.08963332]
[1742219346175,0.0001,127.46,127.45,15.5062]
[1742219346681,0.0001,127.46,127.45,7.66]
[1742219347052,28.58353332,127.46,127.43,7.8473]
[1742219347475,0.0001,127.46,127.43,7.8473]
[1742219348575,28.58343332,127.44,127.39,6.4983]
[1742219348766,28.58343332,127.43,127.39,14.3479]
[1742219348966,28.58343332,127.44,127.39,14.3479]
[1742219349170,28.58343332,127.43,127.39,7.8496]
[1742219349375,0.28442314,127.46,127.39,7.8496]
[1742219349569,28.58343332,127.43,127.39,7.8496]
[1742219349767,0.28442314,127.46,127.38,92.8445]
[1742219349768,28.58343332,127.42,127.38,92.8445]
[1742219349959,28.58343332,127.42,127.38,84.9943]
[1742219350160,28.58343332,127.42,127.38,77.3343]
[1742219350476,7.848,127.42,127.38,0.03]
[1742219350662,28.58343332,127.4,127.38,0.03]
[1742219350858,28.86775646,127.39,127.38,0.03]
[1742219352263,7.66,127.43,127.38,0.03]
[1742219352467,28.58343332,127.41,127.38,0.03]
[1742219352983,28.58343332,127.4,127.38,0.03]
[1742219353866,28.58343332,127.41,127.38,0.03]
[1742219354075,28.86775646,127.42,127.38,0.03]
[1742219354878,28.72559489,127.42,127.38,0.03]
[1742219355173,28.72559489,127.43,127.38,28.61343332]
[1742219355356,15.9075,127.45,127.38,28.61343332]
[1742219355357,0.0001,127.46,127.38,0.03]
[1742219355562,28.58343332,127.45,127.4,28.58343332]
[1742219355761,0.28442314,127.46,127.41,28.58343332]
[1742219355762,28.58353332,127.46,127.41,28.58343332]
[1742219355956,0.0001,127.46,127.43,19.6184]
[1742219356164,0.0001,127.46,127.45,28.58343332]
[1742219356485,0.0001,127.46,127.44,36.26343332]
[1742219356979,0.0001,127.46,127.44,7.68]
[1742219357372,47.58353332,127.49,127.44,7.68]
[1742219357565,28.58343332,127.48,127.44,7.68]
[1742219357763,28.58343332,127.47,127.42,7.848]
[1742219358160,28.58343332,127.46,127.42,7.848]
[1742219358559,28.58343332,127.48,127.42,56.05153332]
[1742219358877,28.58343332,127.49,127.43,28.58343332]
[1742219359267,28.58343332,127.48,127.42,27.4681]
[1742219359472,28.58343332,127.48,127.43,28.58343332]
[1742219359673,28.58343332,127.46,127.41,83.45]
[1742219359873,28.58343332,127.45,127.41,7.68]
[1742219360563,0.28432314,127.45,127.41,7.68]
[1742219360768,28.58343332,127.46,127.41,7.68]
[1742219361087,0.14216157,127.46,127.41,44.11193332]
[1742219361290,28.72559489,127.46,127.41,44.11193332]
[1742219361480,28.58343332,127.46,127.41,44.11193332]
[1742219362275,0.14216157,127.47,127.42,28.58343332]
[1742219362474,0.14216157,127.47,127.43,28.58343332]
[1742219362875,28.58343332,127.48,127.41,110.9201]
[1742219363381,28.86775646,127.46,127.41,91.3285]
[1742219363570,28.58343332,127.45,127.41,83.6485]
[1742219363772,0.28432314,127.46,127.41,112.23193332]
[1742219364197,0.14216157,127.45,127.41,112.23193332]
[1742219364574,0.14216157,127.45,127.41,36.46193332]
[1742219364775,0.14216157,127.45,127.41,7.8785]
[1742219364974,28.58343332,127.46,127.41,7.8785]
[1742219365296,17.86979348,127.46,127.41,25.74829348]
[1742219365786,17.86979348,127.44,127.41,0.03]
[1742219366185,17.86979348,127.45,127.41,0.03]
[1742219366390,0.14216157,127.45,127.41,0.03]
[1742219366568,0.14216157,127.46,127.41,17.89979348]
[1742219366773,37.86979348,127.48,127.43,17.86979348]
[1742219367078,17.93279348,127.49,127.44,17.86979348]
[1742219367483,0.063,127.49,127.45,25.71599348]
[1742219367777,0.063,127.49,127.47,17.86979348]
[1742219368885,0.063,127.49,127.45,27.4617]
[1742219368886,0.063,127.49,127.48,17.86979348]
[1742219369478,0.063,127.49,127.48,25.71409348]
[1742219370686,0.063,127.49,127.48,7.8443]
[1742219371090,0.063,127.49,127.48,36.40310691]
[1742219372283,0.063,127.49,127.48,112.17310691]
[1742219373372,0.0001,127.49,127.48,112.17310691]
[1742219373975,0.0001,127.49,127.48,120.08140691]
[1742219377581,0.0001,127.49,127.48,118.32910691]
[1742219377772,0.0001,127.49,127.48,75.8]
[1742219378179,0.0001,127.49,127.48,104.35880691]
[1742219378401,0.0001,127.49,127.48,28.58880691]
[1742219379074,0.0001,127.49,127.48,36.43310691]
[1742219379279,0.0001,127.49,127.48,0.03]
[1742219379593,0.0001,127.49,127.48,28.58880691]
[1742219381987,0.0001,127.49,127.48,0.03]
[1742219382487,0.0001,127.49,127.48,28.58880691]
[1742219383385,0.0001,127.49,127.48,0.03]
[1742219383602,0.0001,127.49,127.48,28.58880691]
[1742219385108,0.0001,127.49,127.48,0.03]
[1742219385309,28.55890691,127.49,127.48,0.03]
[1742219385818,28.84323005,127.49,127.48,0.03]
[1742219386186,36.68693005,127.49,127.48,0.03]
[1742219386596,36.97125319,127.49,127.48,0.03]
[1742219386999,55.62090205,127.49,127.48,0.03]
[1742219388005,36.97125319,127.49,127.48,0.03]
[1742219388401,55.62090205,127.49,127.48,0.03]
[1742219389542,20.28432314,127.45,127.41,0.03]
[1742219389717,28.55880691,127.42,127.41,0.03]
[1742219390422,28.84313005,127.42,127.41,0.03]
[1742219390607,36.69113005,127.42,127.41,0.03]
[1742219390996,28.84313005,127.42,127.41,0.03]
[1742219391194,18.16753996,127.42,127.41,0.03]
[1742219391413,26.01553996,127.42,127.41,0.03]
[1742219391615,59.01121196,127.42,127.41,0.03]
[1742219391819,20.0,127.39,127.38,0.03]
[1742219392004,38.4518631,127.39,127.38,0.03]
[1742219392319,46.3017631,127.39,127.38,0.03]
[1742219392701,47.8728631,127.39,127.38,0.03]
[1742219393225,66.52251196,127.39,127.38,0.03]
[1742219393428,47.8728631,127.39,127.38,0.03]
[1742219393600,47.58853996,127.39,127.38,0.03]
[1742219393925,74.18251196,127.39,127.38,0.03]
[1742219394997,0.28432314,127.36,127.28,10.6567183]
[1742219395315,0.28432314,127.34,127.3,17.88321682]
[1742219395515,18.02537839,127.34,127.28,10.6567183]
[1742219395713,0.14216157,127.34,127.31,17.88321682]
[1742219395910,0.28432314,127.36,127.31,17.88321682]
[1742219396110,0.14216157,127.38,127.35,17.88321682]
[1742219396324,0.28432314,127.38,127.35,17.88321682]
[1742219396526,0.28432314,127.38,127.34,25.73561682]
[1742219396701,0.28432314,127.38,127.34,17.88321682]
[1742219396902,18.16753996,127.38,127.32,7.854]
[1742219397099,18.16753996,127.38,127.33,17.88321682]
[1742219397401,18.16753996,127.38,127.32,25.73721682]
[1742219397603,18.16753996,127.38,127.33,17.88321682]
[1742219397808,8.0213,127.42,127.36,17.88321682]
[1742219398121,25.86753996,127.41,127.36,17.88321682]
[1742219398304,17.88321682,127.4,127.35,17.88321682]
[1742219398503,17.88321682,127.4,127.33,7.8536]
[1742219398700,17.88321682,127.4,127.35,17.88321682]
[1742219399423,17.88321682,127.39,127.34,17.88321682]
[1742219399621,0.14216157,127.4,127.34,17.88321682]
[1742219399823,0.14216157,127.4,127.31,17.91321682]
[1742219399824,0.28432314,127.35,127.31,17.91321682]
[1742219400202,34.51904886,127.42,127.34,17.88321682]
[1742219400399,20.0,127.39,127.36,17.88321682]
[1742219400606,0.14216157,127.4,127.37,17.88321682]
[1742219400801,0.14216157,127.41,127.38,17.88321682]
[1742219401024,0.28432314,127.41,127.38,17.88321682]
[1742219401213,0.28432314,127.39,127.33,75.77]
[1742219401401,18.02537839,127.39,127.34,17.88321682]
[1742219401606,0.14216157,127.39,127.34,17.88321682]
[1742219402123,0.28432314,127.41,127.37,17.88321682]
[1742219402321,0.28432314,127.41,127.38,17.88321682]
[1742219402523,8.0213,127.42,127.38,17.88321682]
[1742219402823,0.28432314,127.42,127.39,17.88321682]
[1742219403226,18.02537839,127.42,127.37,17.88321682]
[1742219403532,17.88321682,127.42,127.37,17.88321682]
[1742219403734,0.14216157,127.42,127.38,17.88321682]
[1742219403930,0.14216157,127.43,127.38,17.88321682]
[1742219404122,26.2986631,127.44,127.38,17.88321682]
[1742219404317,0.28432314,127.42,127.38,17.88321682]
[1742219404706,0.14216157,127.43,127.38,25.73361682]
[1742219405101,0.14216157,127.42,127.38,17.88321682]
[1742219405309,0.28432314,127.41,127.36,7.72]
[1742219405507,0.28432314,127.38,127.32,21.9653]
[1742219405713,18.16753996,127.37,127.31,75.8]
[1742219406129,17.88321682,127.38,127.32,17.88321682]
[1742219406427,0.28432314,127.37,127.33,17.88321682]
[1742219407028,18.16753996,127.37,127.32,17.88321682]
[1742219407223,0.28432314,127.35,127.31,0.03]
[1742219407731,18.16753996,127.35,127.31,0.03]
[1742219407920,19.21829514,127.29,127.28,2.8002183]
[1742219408231,44.84151196,127.29,127.28,2.8002183]
[1742219408415,46.98849514,127.26,127.25,0.03]
[1742219408617,64.87171196,127.26,127.25,0.03]
[1742219408817,28.05452314,127.26,127.25,0.03]
[1742219409017,64.87171196,127.26,127.25,0.03]
[1742219409220,75.39470536,127.26,127.25,0.03]
[1742219409428,104.36956186,127.26,127.25,0.03]
[1742219409619,57.02937964,127.26,127.25,0.03]
[1742219410014,20.28432314,127.26,127.25,0.03]
[1742219410236,48.9748565,127.26,127.25,0.03]
[1742219410710,20.28432314,127.26,127.25,0.03]
[1742219411035,0.28432314,127.28,127.25,0.03]
[1742219411405,6.6222,127.29,127.25,28.72053336]
[1742219411607,14.0882,127.32,127.27,28.69053336]
[1742219411831,6.1882,127.32,127.28,28.69053336]
[1742219412062,0.28432314,127.33,127.3,28.69053336]
[1742219412340,6.1882,127.36,127.32,28.69053336]
[1742219412630,28.69053336,127.33,127.26,75.77]
[1742219412839,48.69053336,127.31,127.26,83.6277]
[1742219413022,48.69053336,127.31,127.26,104.46053336]
[1742219413224,28.69053336,127.31,127.26,104.46053336]
[1742219413421,28.69053336,127.28,127.25,0.03]
[1742219413825,28.69053336,127.27,127.25,0.03]